bitfinex/quotes_ETHUSD_20250813
["timestamp","ask_amount","ask_price","bid_price","bid_amount"]
[1755123119791,0.002,4726.5,4726.4,0.10657068]
[1755123120017,1.3907,4726.5,4726.4,3.29797068]
[1755123120341,1.3907,4726.5,4726.4,3.297]
[1755123120623,1.3907,4726.5,4726.4,3.296]
[1755123121012,1.3907,4726.5,4726.4,3.29697068]
[1755123123348,1.3907,4726.5,4726.4,0.00097068]
[1755123123527,1.3907,4726.5,4726.4,3.29697068]
[1755123123855,1.3907,4726.5,4726.4,3.296]
[1755123127054,1.3907,4726.5,4725.8,0.001]
[1755123127055,1.56695595,4726.5,4725.8,0.001]
[1755123127355,1.3887,4726.4,4725.9,3.296]
[1755123127540,0.1056,4725.9,4725.8,0.001]
[1755123127865,0.1056,4725.9,4725.8,3.297]
[1755123128231,1.4943,4725.9,4725.8,3.297]
[1755123129874,0.1056,4725.9,4725.8,3.297]
[1755123130228,1.0646,4725.9,4725.8,0.001]
[1755123130469,1.60076,4725.9,4725.8,3.296]
[1755123131279,1.17106,4725.9,4725.8,3.296]
[1755123132268,1.60076,4725.9,4725.8,3.296]
[1755123132468,1.60076,4725.9,4725.8,0.001]
[1755123132732,1.60076,4725.9,4725.8,3.296]
[1755123133170,1.60076,4725.9,4725.8,0.001]
[1755123133572,1.60076,4725.9,4725.8,3.296]
[1755123133743,1.17106,4725.9,4725.8,3.296]
[1755123134885,0.21206,4725.9,4725.8,3.296]
[1755123135043,0.1056,4725.9,4725.8,3.296]
[1755123136379,1.0646,4725.9,4725.8,3.296]
[1755123137478,0.1056,4725.9,4725.8,3.296]
[1755123137678,0.1056,4725.9,4725.8,3.7685]
[1755123138870,0.1056,4725.9,4725.8,3.296]
[1755123139861,0.1056,4725.9,4725.8,3.7685]
[1755123141887,0.1056,4725.9,4725.8,3.296]
[1755123142597,0.1056,4725.9,4725.8,3.7685]
[1755123142796,0.1056,4726.0,4725.8,0.001]
[1755123142978,0.959,4725.9,4725.8,3.294]
[1755123143365,0.959,4725.9,4725.8,0.001]
[1755123143570,0.959,4725.9,4725.8,3.294]
[1755123143903,0.1056,4726.0,4725.8,3.294]
[1755123144266,0.1056,4726.0,4725.9,3.293]
[1755123144973,0.1056,4726.0,4725.8,0.001]
[1755123145174,1.3887,4725.9,4725.8,0.001]
[1755123145411,1.53813,4725.9,4725.8,3.294]
[1755123148067,1.53813,4725.9,4725.8,0.001]
[1755123149905,3.67313,4725.9,4725.8,0.001]
[1755123151097,3.69955595,4725.9,4725.8,0.001]
[1755123151301,3.26985595,4725.9,4725.8,0.001]
[1755123151467,3.24343,4725.9,4725.8,0.001]
[1755123151870,3.80383,4725.9,4725.8,0.001]
[1755123156815,3.83025595,4725.9,4725.8,0.001]
[1755123159223,6.83025595,4725.9,4725.8,0.001]
[1755123159430,6.80383,4725.9,4725.8,0.001]
[1755123159598,27.08865536,4725.9,4725.8,0.001]
[1755123161208,29.31165536,4725.9,4725.8,0.001]
[1755123161414,2.223,4725.7,4725.4,0.001]
[1755123161612,5.3286,4725.5,4725.4,0.001]
[1755123162151,21.1994,4725.5,4725.4,0.001]
[1755123162540,18.9764,4725.5,4725.4,0.001]
[1755123164022,5.134,4725.4,4724.8,0.001]
[1755123164202,0.1056,4724.9,4724.8,0.001]
[1755123164399,5.55702595,4724.9,4724.8,0.001]
[1755123164632,6.4466,4724.9,4724.8,0.001]
[1755123166310,9.4466,4724.9,4724.8,0.001]
[1755123166515,9.9014,4724.9,4724.8,0.001]
[1755123166821,12.00252725,4724.9,4724.8,0.001]
[1755123167017,11.54772725,4724.9,4724.8,0.001]
[1755123168405,10.63172725,4724.9,4724.8,0.001]
[1755123171348,7.63172725,4724.9,4724.8,0.001]
[1755123171640,5.5296,4724.9,4724.8,0.001]
[1755123172736,9.4456,4724.9,4724.8,0.001]
[1755123173418,6.1556,4724.9,4724.8,0.001]
[1755123173628,9.4446,4724.9,4724.8,0.001]
[1755123176340,11.23387495,4724.9,4724.8,0.001]
[1755123176649,10.31787495,4724.9,4724.8,0.001]
[1755123179311,4.02887495,4724.9,4724.8,0.001]
[1755123179511,2.2396,4724.9,4724.8,1.3614]
[1755123180922,0.1056,4724.9,4724.8,1.3614]
[1755123184159,0.1056,4725.2,4724.8,1.3614]
[1755123184334,0.1056,4725.2,4725.1,9.18122229]
[1755123184846,0.1056,4725.2,4725.1,10.54162229]
[1755123185950,0.1056,4725.2,4725.1,13.82862229]
[1755123187360,0.002,4726.4,4725.1,13.82862229]
[1755123187361,0.002,4726.4,4725.1,16.82862229]
[1755123187550,0.1056,4725.7,4725.6,9.18122229]
[1755123187753,0.1056,4725.7,4725.6,1.3604]
[1755123188455,0.1056,4725.7,4725.6,10.54162229]
[1755123188628,0.002,4725.9,4725.6,10.54162229]
[1755123188827,0.002,4725.9,4725.7,1.3604]
[1755123189054,0.002,4725.9,4725.8,6.286]
[1755123189256,0.002,4725.9,4725.8,7.6464]
[1755123189761,0.002,4725.9,4725.8,7.752]
[1755123194843,0.002,4726.4,4725.8,4.752]
[1755123195044,0.002,4726.9,4726.4,3.0]
[1755123195263,0.002,4726.9,4726.8,9.18122229]
[1755123195562,0.002,4726.9,4726.8,12.4983819]
[1755123195764,0.002,4726.9,4726.8,13.64722229]
[1755123196761,0.002,4726.9,4726.8,16.93122229]
[1755123198349,0.002,4726.9,4726.8,13.64722229]
[1755123198559,0.002,4726.9,4726.8,16.93022229]
[1755123199081,0.002,4726.9,4726.8,13.64722229]
[1755123199288,0.002,4726.9,4726.8,16.93022229]
[1755123199788,0.002,4726.9,4726.8,13.64722229]
[1755123200082,0.002,4726.9,4726.8,16.92922229]
[1755123201075,0.002,4726.9,4726.8,13.64722229]
[1755123201385,0.002,4726.9,4726.8,16.92922229]
[1755123202755,0.002,4726.9,4726.8,16.92822229]
[1755123203772,0.002,4726.9,4726.8,13.64722229]
[1755123203955,0.002,4726.9,4726.8,16.92822229]
[1755123206773,0.002,4726.9,4726.8,3.1056]
[1755123206956,0.8856,4726.9,4726.8,3.3856]
[1755123207156,0.002,4726.9,4726.8,6.28]
[1755123207358,0.002,4726.9,4726.8,3.28]
[1755123208070,0.002,4726.9,4726.8,6.28]
[1755123209463,0.002,4726.9,4726.8,3.0]
[1755123209663,0.9103,4726.9,4726.5,0.1056]
[1755123209977,0.9103,4726.9,4726.6,3.28]
[1755123209978,1.4762,4726.8,4726.6,3.28]
[1755123210188,0.9083,4726.7,4726.1,0.739777]
[1755123210392,1.3706,4726.7,4726.1,0.739777]
[1755123210692,1.3706,4726.6,4726.2,3.279]
[1755123210873,1.3706,4726.5,4726.3,3.279]
[1755123211076,1.4762,4726.4,4726.3,3.279]
[1755123211899,1.4762,4726.4,4726.0,0.001]
[1755123212098,0.162422,4726.4,4726.1,3.28]
[1755123212286,0.1056,4726.2,4726.1,3.28]
[1755123212482,1.4762,4726.2,4726.1,3.28]
[1755123212691,1.4762,4726.2,4726.0,0.001]
[1755123212890,1.3706,4726.1,4726.0,0.001]
[1755123213085,1.3706,4726.1,4726.0,3.28]
[1755123214304,0.9083,4726.1,4726.0,3.28]
[1755123217595,0.1056,4726.2,4726.0,3.28]
[1755123217797,1.0139,4726.2,4726.0,3.28]
[1755123217993,0.9083,4726.1,4726.0,3.28]
[1755123218578,0.1056,4726.1,4726.0,3.7315]
[1755123218781,0.1056,4726.1,4726.0,4.654]
[1755123218969,0.1056,4726.1,4726.0,3.7315]
[1755123219374,0.002,4726.9,4726.0,3.7315]
[1755123219375,0.9083,4726.8,4726.0,3.7315]
[1755123219602,0.1056,4726.3,4726.0,3.7315]
[1755123219785,0.1056,4726.3,4726.1,0.4515]
[1755123220611,0.1056,4726.3,4726.2,0.4515]
[1755123221179,0.1056,4726.3,4726.1,9.18122229]
[1755123221577,0.1056,4726.3,4726.2,3.4515]
[1755123221904,0.002,4726.9,4726.2,4.374]
[1755123222104,0.002,4726.9,4726.5,9.18122229]
[1755123222309,0.002,4726.9,4726.6,3.278]
[1755123222881,0.002,4726.9,4726.7,0.4515]
[1755123223476,0.002,4726.9,4726.8,0.4515]
[1755123223883,0.002,4726.9,4726.8,4.60671557]
[1755123224107,0.002,4726.9,4726.8,1.58555961]
[1755123225285,0.002,4726.9,4726.8,0.4515]
[1755123225477,0.002,4726.9,4726.8,15.90972229]
[1755123225913,0.002,4726.9,4726.8,16.83222229]
[1755123229510,0.002,4726.9,4726.8,17.0437819]
[1755123229713,0.002,4727.9,4727.1,0.21154413]
[1755123229898,0.002,4727.9,4727.4,9.18122229]
[1755123230207,0.002,4727.9,4727.4,15.66875505]
[1755123230608,0.002,4727.9,4727.4,17.04275505]
[1755123231001,0.002,4727.9,4727.4,16.83122229]
[1755123231719,0.002,4727.9,4727.4,16.93682229]
[1755123232215,0.002,4727.9,4727.5,3.0]
[1755123232417,0.002,4727.9,4727.8,12.18122229]
[1755123232583,0.002,4727.9,4727.8,15.77433715]
[1755123232921,0.002,4727.9,4727.8,17.14833715]
[1755123233283,0.002,4727.9,4727.8,14.14833715]
[1755123233685,0.022,4728.4,4728.3,0.2114925]
[1755123233987,0.022,4728.4,4728.3,12.45622229]
[1755123234210,0.022,4728.4,4728.3,9.28682229]
[1755123234414,0.022,4728.4,4728.3,13.01332229]
[1755123234815,0.022,4728.4,4728.3,12.73832229]
[1755123235035,0.022,4728.4,4728.3,16.01332229]
[1755123236732,0.022,4728.4,4728.3,15.56182229]
[1755123237104,0.022,4728.4,4728.3,16.01332229]
[1755123237713,0.022,4728.4,4728.3,15.56082229]
[1755123238230,0.022,4728.4,4728.3,12.28682229]
[1755123238432,0.022,4728.4,4728.3,6.3796]
[1755123238598,0.022,4728.4,4728.3,6.8438]
[1755123239503,0.022,4728.4,4728.3,7.7581]
[1755123240594,0.022,4728.4,4728.3,6.8438]
[1755123241194,0.022,4728.4,4728.3,7.6525]
[1755123241425,0.022,4728.4,4728.3,7.9695925]
[1755123243327,0.002,4728.9,4728.4,3.0]
[1755123243523,0.002,4728.9,4728.7,3.0]
[1755123243725,0.002,4728.9,4728.8,3.273]
[1755123244032,0.002,4728.9,4728.8,3.3786]
[1755123244404,0.002,4728.9,4728.8,0.1056]
[1755123244604,0.002,4728.9,4728.8,3.8428]
[1755123245902,0.002,4728.9,4728.8,4.05427014]
[1755123246129,0.022,4729.4,4728.9,3.0]
[1755123246331,0.022,4729.4,4729.3,9.28682229]
[1755123246534,0.022,4729.4,4729.3,3.3776]
[1755123246935,0.022,4729.4,4729.3,3.8418]
[1755123248238,0.022,4729.4,4729.3,4.05324778]
[1755123248533,0.022,4729.4,4729.3,3.8418]
[1755123248938,0.022,4729.4,4729.3,0.5698]
[1755123249138,0.022,4729.4,4729.3,0.1056]
[1755123249350,0.022,4729.4,4729.3,6.3776]
[1755123249513,0.022,4729.4,4729.3,6.8418]
[1755123251648,0.022,4729.4,4729.3,6.8408]
[1755123252249,0.022,4729.4,4729.3,3.1056]
[1755123252448,1.3994,4729.4,4729.3,6.3766]
[1755123252811,1.3994,4729.4,4729.3,3.1056]
[1755123253029,1.3994,4729.4,4729.1,0.1056]
[1755123253238,1.51734,4729.3,4729.0,5.068]
[1755123253534,1.51734,4729.3,4729.1,3.271]
[1755123253535,1.3774,4729.2,4729.1,3.271]
[1755123253939,1.483,4729.2,4729.1,3.271]
[1755123254113,1.483,4729.2,4729.0,5.068]
[1755123254315,0.1056,4729.2,4729.1,3.271]
[1755123255049,1.483,4729.2,4729.1,3.271]
[1755123255561,1.483,4729.2,4729.0,5.068]
[1755123255845,0.2561,4729.2,4729.0,5.068]
[1755123256030,0.1056,4729.2,4729.1,3.271]
[1755123256873,1.2636,4729.2,4727.7,0.1056]
[1755123257074,1.158,4729.1,4727.9,3.0]
[1755123257242,0.1056,4728.1,4728.0,3.271]
[1755123257632,1.0336,4728.1,4728.0,3.271]
[1755123258745,0.928,4728.8,4728.0,3.271]
[1755123259060,0.1056,4728.3,4728.0,3.271]
[1755123259830,1.0336,4728.3,4728.0,3.271]
[1755123261371,0.1056,4728.3,4728.0,3.271]
[1755123262054,0.1056,4728.3,4728.2,9.15653609]
[1755123262362,0.1056,4729.0,4728.3,3.0]
[1755123262664,0.002,4729.3,4728.7,20.34591895]
[1755123262837,0.002,4729.3,4728.8,3.27]
[1755123263028,0.002,4729.3,4728.9,3.0]
[1755123263228,0.002,4729.3,4729.0,0.1056]
[1755123263463,0.002,4729.3,4729.2,3.0]
[1755123264068,0.002,4729.3,4729.2,3.4642]
[1755123264785,0.002,4729.3,4729.2,4.4841]
[1755123265567,0.002,4729.3,4729.2,4.69555225]
[1755123265835,0.002,4729.3,4729.2,4.4841]
[1755123267263,0.002,4729.3,4729.2,3.5698]
[1755123267444,0.002,4729.3,4729.2,3.654296]
[1755123267758,0.002,4729.3,4729.2,4.553396]
[1755123268334,0.002,4729.3,4729.2,4.76484825]
[1755123268534,0.002,4729.3,4729.2,4.553396]
[1755123268956,0.002,4729.3,4729.2,4.76484825]
[1755123269172,0.002,4729.3,4729.2,4.553396]
[1755123270161,0.002,4729.3,4729.2,3.654296]
[1755123270574,0.002,4729.3,4729.2,4.553396]
[1755123271342,0.002,4729.3,4729.2,4.76484825]
[1755123271546,0.022,4729.4,4729.3,23.45176673]
[1755123271761,0.022,4729.4,4729.3,28.07996673]
[1755123272975,0.002,4729.8,4729.7,0.2114299]
[1755123273176,0.002,4729.8,4729.7,11.6520299]
[1755123273458,0.002,4729.8,4729.7,13.0112299]
[1755123273864,0.8521,4730.8,4730.1,0.21141023]
[1755123274066,0.8521,4730.8,4730.3,23.24031895]
[1755123274269,0.8521,4730.8,4730.3,26.50831895]
[1755123274801,0.8521,4730.8,4730.3,26.61391895]
[1755123276088,0.8521,4730.8,4730.3,23.34591895]
[1755123276269,0.8521,4730.8,4730.3,26.61391895]
[1755123276469,0.8521,4730.8,4730.3,23.34591895]
[1755123276680,0.8521,4730.8,4730.3,26.61391895]
[1755123277163,0.8521,4730.8,4730.3,3.3736]
[1755123277363,0.8721,4730.4,4730.3,3.268]
[1755123278292,0.1056,4731.6,4730.3,4.83860308]
[1755123278496,0.1056,4731.6,4731.0,3.0]
[1755123278798,1.3004,4731.3,4731.1,3.268]
[1755123278967,0.1056,4731.6,4731.1,3.268]
[1755123279169,1.3004,4731.3,4730.4,3.0]
[1755123279385,0.8521,4731.2,4730.6,3.1056]
[1755123279586,0.8521,4731.2,4730.8,3.0]
[1755123279769,0.022,4731.4,4731.0,3.0]
[1755123279968,0.022,4731.4,4731.1,3.267]
[1755123280177,0.8741,4731.4,4731.1,3.267]
[1755123280381,0.8521,4731.3,4731.1,3.267]
[1755123280604,0.022,4731.4,4731.1,3.267]
[1755123280901,0.8521,4731.2,4731.1,3.267]
[1755123281263,1.3004,4731.2,4731.1,3.267]
[1755123281460,1.3004,4731.2,4730.9,0.1056]
[1755123281662,0.8521,4731.1,4730.9,0.1056]
[1755123281864,0.022,4731.4,4730.6,0.633533]
[1755123281865,1.406,4731.0,4730.6,0.633533]
[1755123282095,1.3004,4730.9,4730.7,1.919]
[1755123282399,1.3004,4730.8,4730.7,1.919]
[1755123283380,0.8521,4730.8,4730.7,1.919]
[1755123284202,0.1056,4731.0,4730.7,1.919]
[1755123284572,0.1056,4731.0,4730.8,0.02113807]
[1755123284790,0.1056,4731.0,4730.9,9.14992686]
[1755123285169,0.9577,4731.0,4730.9,9.14992686]
[1755123286173,0.1056,4731.0,4730.9,9.14992686]
[1755123286382,0.1056,4731.0,4730.9,12.14992686]
[1755123286571,0.1056,4731.0,4730.9,12.61002686]
[1755123286776,0.022,4731.4,4730.9,0.5657]
[1755123286986,0.022,4731.4,4731.0,3.266]
[1755123287817,0.8521,4731.3,4731.0,3.266]
[1755123288023,0.022,4731.4,4731.0,3.266]
[1755123288325,0.022,4731.4,4731.2,0.1056]
[1755123288832,0.022,4731.4,4731.3,3.266]
[1755123289012,0.022,4731.4,4731.3,3.3716]
[1755123289207,0.8721,4732.4,4731.4,3.0]
[1755123289208,0.02,4732.4,4731.4,3.0]
[1755123289419,0.02,4732.4,4732.2,0.1056]
[1755123289705,0.02,4732.4,4732.3,3.266]
[1755123289910,0.02,4732.4,4732.3,6.7261]
[1755123290114,0.02,4732.4,4732.3,7.94211373]
[1755123290311,0.002,4732.9,4732.3,7.94211373]
[1755123290312,0.002,4732.9,4732.8,23.22512153]
[1755123290688,0.002,4732.9,4732.8,26.80801294]
[1755123290801,0.02639302,4736.1,4733.0,0.21128248]
[1755123291135,0.8521,4733.7,4732.8,0.1056]
[1755123291422,0.15559001,4735.7,4732.8,0.1056]
[1755123291423,0.1056,4733.6,4732.8,0.1056]
[1755123291624,0.9577,4733.3,4732.9,3.265]
[1755123291797,0.1056,4733.3,4733.0,3.265]
[1755123292000,1.3004,4733.2,4732.6,0.1056]
[1755123292332,1.3004,4733.2,4732.7,3.265]
[1755123292502,1.3004,4733.1,4732.6,0.1056]
[1755123292695,0.02,4733.4,4732.8,3.265]
[1755123292696,1.3004,4733.0,4732.8,3.265]
[1755123292891,0.9577,4732.9,4732.8,3.265]
[1755123293110,0.1056,4732.9,4732.8,3.265]
[1755123293300,0.02,4733.4,4732.8,3.265]
[1755123293514,0.1056,4733.3,4732.8,3.265]
[1755123294626,0.1056,4733.3,4732.9,0.4601]
[1755123295218,0.1056,4733.3,4732.8,3.265]
[1755123295615,0.1056,4733.3,4732.9,0.4601]
[1755123295817,0.02,4733.4,4733.0,0.4601]
[1755123296033,0.02,4733.4,4733.3,3.0]
[1755123296234,0.02,4733.4,4733.3,6.265]
[1755123296434,0.02,4733.4,4733.3,6.7251]
[1755123296640,0.02,4733.4,4733.3,7.6242]
[1755123297544,0.02,4733.4,4733.3,6.7251]
[1755123297847,0.02,4733.4,4733.2,0.1056]
[1755123298049,0.02,4733.4,4733.3,2.387]
[1755123298352,0.02,4733.4,4732.5,0.453]
[1755123298740,0.02,4733.4,4732.7,3.1056]
[1755123298741,0.1056,4733.3,4732.7,3.1056]
[1755123300118,1.0089,4733.3,4732.9,3.0]
[1755123300348,0.1056,4733.3,4732.9,3.0]
[1755123301331,0.02,4733.4,4733.0,1.3213]
[1755123301528,0.022,4733.4,4733.0,1.3213]
[1755123301729,0.022,4733.4,4733.2,3.0]
[1755123302053,0.9253,4733.4,4732.7,3.0]
[1755123302225,0.9033,4733.3,4732.9,3.0]
[1755123302424,1.3614,4733.2,4733.0,3.263]
[1755123302654,0.13834,4733.3,4733.1,3.263]
[1755123302956,0.022,4733.4,4732.1,3.0]
[1755123303256,0.9033,4733.3,4732.3,3.0]
[1755123303456,0.022,4733.4,4732.0,5.064]
[1755123303750,0.9033,4733.2,4732.1,3.0]
[1755123303968,0.4581,4733.1,4732.2,3.263]
[1755123304169,0.4581,4733.1,4732.0,5.064]
[1755123304170,0.13834,4733.0,4732.0,5.064]
[1755123304319,0.13834,4733.0,4732.3,3.263]
[1755123304320,1.06805031,4733.0,4732.3,3.263]
[1755123304524,0.4581,4732.9,4732.3,3.263]
[1755123304823,0.4581,4732.9,4732.4,3.263]
[1755123305129,0.9033,4732.8,4732.4,3.263]
[1755123305361,0.608074,4732.7,4732.0,5.064]
[1755123305532,0.608074,4732.7,4732.1,3.263]
[1755123305733,0.9033,4732.6,4732.0,5.064]
[1755123306049,0.9033,4732.6,4732.2,3.263]
[1755123306576,0.2214,4733.3,4732.2,3.263]
[1755123306577,0.9033,4733.0,4732.2,3.263]
[1755123306737,0.9033,4733.0,4732.3,0.453]
[1755123307249,0.022,4733.4,4732.3,0.453]
[1755123307558,0.13667,4733.4,4732.3,0.453]
[1755123309332,0.022,4733.4,4732.3,3.453]
[1755123309543,0.022,4733.4,4732.4,1.3213]
[1755123310061,0.022,4733.4,4732.5,0.453]
[1755123310263,0.9033,4733.3,4732.6,3.263]
[1755123310464,0.2214,4733.2,4732.7,3.263]
[1755123310636,0.2214,4733.2,4731.7,5.064]
[1755123310637,0.11467,4733.1,4732.8,3.263]
[1755123310961,0.2214,4733.0,4731.7,5.064]
[1755123311166,1.1247,4733.0,4731.8,6.263]
[1755123311369,1.1247,4733.0,4731.8,6.3686]
[1755123311370,0.1056,4732.4,4731.8,6.3686]
[1755123312163,0.1056,4732.4,4731.9,3.263]
[1755123312364,0.1056,4732.4,4731.7,5.064]
[1755123312365,0.1056,4732.4,4732.0,3.263]
[1755123312563,0.9033,4732.6,4732.0,3.263]
[1755123312564,0.1056,4732.1,4732.0,3.263]
[1755123315065,0.022,4733.4,4732.0,4.5843]
[1755123315264,0.1056,4732.5,4732.1,0.453]
[1755123315564,0.022,4733.4,4732.2,0.88943182]
[1755123315742,0.1056,4732.9,4732.3,0.1056]
[1755123315944,0.9033,4733.1,4732.4,3.263]
[1755123316143,0.1056,4732.6,4732.4,3.263]
[1755123316346,0.1056,4732.6,4732.5,0.453]
[1755123316545,0.1056,4732.6,4732.5,4.3213]
[1755123316944,0.022,4733.4,4732.5,4.3213]
[1755123317269,0.1056,4733.1,4732.5,3.5586]
[1755123317768,0.1056,4733.1,4732.5,3.1056]
[1755123317939,0.1056,4733.1,4732.6,0.453]
[1755123318139,0.1056,4733.1,4732.7,0.8683]
[1755123318334,0.1056,4733.1,4732.8,3.263]
[1755123318567,0.1056,4733.1,4732.8,4.5843]
[1755123318767,0.1056,4733.1,4732.9,0.453]
[1755123318941,0.1056,4733.1,4732.9,3.453]
[1755123319138,0.1056,4733.1,4733.0,0.453]
[1755123320079,0.1056,4733.1,4732.5,0.738912]
[1755123320376,0.1056,4733.1,4732.6,3.262]
[1755123320575,0.1056,4733.1,4732.3,0.1056]
[1755123320576,0.1056,4733.1,4732.7,3.262]
[1755123320740,0.1056,4733.1,4732.8,3.262]
[1755123320941,0.1056,4733.1,4732.3,0.1056]
[1755123321161,0.1056,4733.1,4732.5,3.0]
[1755123321364,0.1056,4733.1,4732.6,0.453]
[1755123321671,0.1056,4733.1,4732.7,0.453]
[1755123322036,0.1056,4733.1,4732.8,0.453]
[1755123322940,0.1056,4733.1,4732.7,3.0]
[1755123323137,0.1056,4733.1,4732.9,0.453]
[1755123323351,0.1056,4733.1,4733.0,3.262]
[1755123323673,0.1056,4733.1,4733.0,6.715]
[1755123323974,0.022,4733.4,4733.1,3.0]
[1755123324173,0.022,4733.4,4733.1,4.3213]
[1755123324379,0.022,4733.4,4733.2,0.453]
[1755123324580,0.022,4733.4,4733.3,3.262]
[1755123325438,0.022,4733.4,4733.0,0.1056]
[1755123325673,0.1056,4733.1,4732.4,0.1056]
[1755123325984,0.1056,4733.1,4732.5,3.262]
[1755123326482,0.1056,4733.1,4732.4,0.2112]
[1755123326657,0.1056,4733.1,4732.5,3.262]
[1755123327186,0.1056,4733.1,4732.4,0.1056]
[1755123327383,0.9033,4733.0,4732.5,3.262]
[1755123327544,1.03944,4732.9,4732.6,3.262]
[1755123327877,0.1056,4732.7,4732.6,3.262]
[1755123329579,0.1056,4732.7,4732.1,0.4654]
[1755123329776,0.1056,4732.3,4732.2,3.262]
[1755123330077,0.1056,4732.3,4732.2,3.7264]
[1755123332684,0.1056,4732.9,4732.3,3.0]
[1755123332887,0.1056,4732.9,4732.4,0.4644]
[1755123333093,0.1056,4732.9,4732.6,3.0]
[1755123333763,0.1056,4732.9,4732.7,0.4644]
[1755123333963,0.1056,4732.9,4732.8,3.262]
[1755123334692,0.1056,4732.9,4732.8,7.5358]
[1755123335056,0.1056,4732.9,4732.8,6.7254]
[1755123335258,0.1056,4733.3,4732.9,3.0]
[1755123335454,0.022,4733.4,4732.3,0.633354]
[1755123335455,0.022,4733.4,4733.0,3.261]
[1755123335760,0.022,4733.4,4732.3,0.633354]
[1755123335761,0.8522,4733.3,4732.3,0.738954]
[1755123335964,0.1056,4732.9,4732.5,3.0]
[1755123336180,0.1056,4732.9,4732.5,3.4644]
[1755123336381,0.1056,4732.9,4732.5,0.4644]
[1755123336564,0.9578,4732.9,4732.1,0.001]
[1755123336770,0.9578,4732.9,4732.3,3.0]
[1755123337170,0.9578,4732.9,4732.5,3.0]
[1755123337480,0.9578,4732.9,4732.4,3.261]
[1755123337685,0.8522,4732.9,4732.1,0.001]
[1755123337890,0.1056,4732.6,4732.3,3.0]
[1755123338890,0.1056,4732.6,4732.4,3.7254]
[1755123339087,0.1056,4732.6,4732.4,0.4644]
[1755123339257,0.1056,4732.6,4732.5,3.261]
[1755123340100,0.1056,4732.6,4732.5,6.7254]
[1755123340394,0.022,4733.4,4732.5,6.7254]
[1755123340395,0.1056,4733.2,4732.6,3.0]
[1755123340595,0.1056,4733.2,4732.7,0.4644]
[1755123340891,0.1056,4733.2,4733.1,3.0]
[1755123341084,0.1056,4733.2,4733.1,7.74607802]
[1755123341271,0.022,4733.4,4733.2,0.21127244]
[1755123341468,0.022,4733.4,4733.2,1.48507244]
[1755123341668,0.022,4733.4,4733.3,0.8094]
[1755123341859,0.022,4733.4,4733.3,1.48506909]
[1755123342286,0.022,4733.4,4733.3,7.5348]
[1755123343172,0.022,4733.4,4733.3,4.2738]
[1755123343372,0.022,4733.4,4733.3,7.5348]
[1755123343887,0.022,4733.4,4733.3,7.5338]
[1755123344467,0.022,4733.4,4733.3,6.7244]
[1755123344667,0.022,4733.4,4733.3,4.2738]
[1755123344975,0.022,4733.4,4733.3,6.26]
[1755123345375,0.022,4733.4,4733.3,3.0]
[1755123345575,0.022,4733.4,4733.3,6.26]
[1755123345905,0.022,4733.4,4733.3,6.7244]
[1755123346463,0.022,4733.4,4733.3,6.26]
[1755123346983,0.022,4733.4,4733.1,0.1056]
[1755123347302,0.022,4733.4,4733.3,3.26]
[1755123348787,0.8742,4733.4,4733.3,3.26]
[1755123349225,0.022,4733.4,4733.3,3.26]
[1755123352013,1.3094,4733.4,4733.3,3.26]
[1755123352223,1.3094,4733.4,4732.4,3.0]
[1755123352423,1.3094,4733.4,4732.9,0.633379]
[1755123352424,0.8522,4733.3,4732.9,0.633379]
[1755123352579,1.2874,4733.3,4731.8,0.4644]
[1755123352779,0.4352,4733.2,4732.4,3.26]
[1755123353014,0.8522,4733.1,4732.5,0.633402]
[1755123353239,0.4352,4733.0,4732.6,3.26]
[1755123353410,0.4352,4733.0,4731.8,0.4644]
[1755123353411,0.4352,4733.0,4732.3,5.696432]
[1755123353705,0.8522,4732.9,4732.4,3.26]
[1755123354085,0.4352,4732.8,4732.4,3.26]
[1755123354298,0.4352,4732.8,4732.3,5.063]
[1755123354514,0.8522,4732.7,4732.5,3.26]
[1755123354902,0.8522,4732.7,4732.1,0.001]
[1755123354903,0.4352,4732.6,4732.1,0.001]
[1755123355081,0.12874,4732.5,4732.2,3.26]
[1755123355281,1.2874,4732.4,4732.2,3.26]
[1755123355478,1.2874,4732.3,4732.1,0.001]
[1755123355706,1.2874,4732.3,4732.2,3.259]
[1755123356429,1.2874,4732.3,4732.1,0.001]
[1755123356584,0.022,4733.4,4732.2,3.259]
[1755123356788,14.52640863,4733.3,4732.2,3.259]
[1755123357006,14.5,4733.3,4732.2,3.259]
[1755123357403,0.1056,4732.3,4732.2,3.259]
[1755123357692,1.393,4732.3,4732.1,0.001]
[1755123357879,0.16571477,4732.2,4732.1,0.001]
[1755123358080,1.46791477,4732.2,4732.1,0.001]